Cogmind - Beta 17 @@@ ROGUE MODE // 2026.08.07 @ 16:28:50 Player: aperiodic Result: Destroyed by AP7-3 with Concept XC Strikerail Performance ------------- Evolutions (7) 3500 Regions Visited (17) 3400 Robots Destroyed (194) 970 Value Destroyed (9068) 9068 Prototype IDs (187) 3740 Alien Tech Used (2) 400 Bonus (7590) 7590 TOTAL SCORE: 28668 Bonus ------- High Alert Combat Kills 731 Follower Combat Kills 3010 Network Hubs Disabled 400 Registered with UFD 300 Met Optimus in HQ 500 Met Zhirov 300 Met R17 at Cetus 500 Met R17 at Research 2000 Friendly Fire -151 Cogmind --------- Core Integrity 0/1300 Matter 44/300 Energy 697/900 System Corruption 39% Temperature Cool (0) Movement Core (1450) Ox28 Location -3/Protoforge Parts ------- > --- POWER (1) -------- (None) > --- PROPULSION (4) --- (None) > --- UTILITY (11) ----- Huge Storage Unit Concept Chromion Battery Gun Armor > --- WEAPON (5) ------- (None) > --- INVENTORY (25) --- Concept Chromion Battery (800) Particle Accelerator Experimental Reaction Control System Experimental Reaction Control System Experimental Utility Shielding Advanced Point Defense System Crosscalibrator Rainbow Chip Transdimensional Reconstructor Subatomic Replicator Core Cannon CPS Tube (2) CPS Tube (2) Peak State ------------ > --- POWER ------------ Quantum Reactor > --- PROPULSION ------- Overtuned Huge Scrapsphere Overtuned Huge Scrapsphere > --- UTILITY ---------- Scrap Suit Experimental Power Amplifier Advanced Coolant Injector Huge Storage Unit IFF Parser Experimental Targeting Computer Experimental Core Analyzer Gun Armor Advanced Force Field Advanced Hacking Suite > --- WEAPON ----------- Overtuned Quantum Rifle Core Cannon Overtuned Railgun Overtuned Railgun Overtuned Railgun Overtuned Railgun > --- INVENTORY -------- Scrap Suit Makeshift Coolant Network Advanced Energy Well Advanced Recoil Stabilizer Particle Accelerator Improved Transmission Jammer Experimental Reaction Control System Experimental Utility Shielding Experimental EM Shield Advanced Point Defense System Rainbow Chip Transdimensional Reconstructor Subatomic Replicator Overtuned Beamcaster Overtuned Beamcaster Overtuned Quantum Rifle Overtuned Railgun Hellfire Missile Launcher CPS Tube CPS Tube [Rating: 186] Favorites ----------- Power Heavy Antimatter Reactor Engine Light Ion Engine Power Core Fusion Compressor Reactor Heavy Antimatter Reactor Propulsion Overtuned Huge Scrapsphere Treads Light Treads Leg Enhanced Flexi-carbon Leg Wheel Overtuned Huge Scrapsphere Hover Unit Gyrokinetic Inverter Flight Unit Diametric Drive Utility Self-contained Transmogrifier Device Self-contained Transmogrifier Storage Huge Storage Unit Processor Advanced Targeting Computer Hackware Advanced Hacking Suite Protection Medium Insulated Plating Weapon Overtuned Beamcaster Energy Gun Overtuned Beamcaster Energy Cannon Subdweller Beam Cannon Ballistic Gun Overtuned Railgun Ballistic Cannon Light Cannon Launcher Heavy Rocket Launcher Special Weapon Improved Remote Datajack Impact Weapon Powered Hammer Slashing Weapon Carbide Saw Piercing Weapon Kinetic Spear Special Melee Weapon Improved Datajack Build | -11 -10 -10 -10 -7 -5 -5 -5 -5 -4 -4 -4 -4 -4 -4 -3 -3 -3 ------- Run | Yrd Mat Min Sub Scr Fac Upp Upp Zhi Pro Fac Ext Cet Arc Hub Res Qua Frg Slots Evolved 14 | . . . . . 10 . . . . 2 . . . . 2 . . Power . | . . . . . . . . . . . . . . . . . . Propulsion 2 | . . . . . 2 . . . . . . . . . . . . Utility 9 | . . . . . 7 . . . . 2 . . . . . . . Weapon 3 | . . . . . 1 . . . . . . . . . 2 . . Parts Attached 138 | 7 15 4 7 6 9 4 8 5 2 2 13 5 4 6 26 . 15 Power 10 | 1 1 1 . 1 1 . . 1 . . . . . 1 . . 3 Engine 4 | 1 1 1 . 1 . . . . . . . . . . . . . Core 1 | . . . . . 1 . . . . . . . . . . . . Reactor 5 | . . . . . . . . 1 . . . . . 1 . . 3 Propulsion 23 | 2 7 1 1 1 2 1 3 . . 2 1 . 2 . . . . Treads 6 | . 3 1 . . . . 2 . . . . . . . . . . Leg 1 | . . . . . . . 1 . . . . . . . . . . Wheel 16 | 2 4 . 1 1 2 1 . . . 2 1 . 2 . . . . Hover . | . . . . . . . . . . . . . . . . . . Flight . | . . . . . . . . . . . . . . . . . . Utility 66 | 2 2 1 3 2 4 3 4 3 2 . 9 2 2 2 18 . 7 Device 37 | 1 . 1 1 1 2 2 . 2 2 . 4 1 1 2 13 . 4 Storage 6 | 1 1 . 1 . . . . . . . 1 . . . . . 2 Processor 5 | . . . . . . . 1 . . . . . 1 . 2 . 1 Hackware 3 | . . . . . . . . . . . 2 . . . 1 . . Protection 15 | . 1 . 1 1 2 1 3 1 . . 2 1 . . 2 . . Artifact . | . . . . . . . . . . . . . . . . . . Weapon 39 | 2 5 1 3 2 2 . 1 1 . . 3 3 . 3 8 . 5 Energy Gun 11 | 1 1 . . . 1 . . . . . 2 2 . 2 1 . 1 Energy Cannon 4 | . . 1 1 . . . . . . . . . . . 1 . 1 Ballistic Gun 9 | 1 1 . . . . . 1 . . . . 1 . . 2 . 3 Ballistic Cannon 3 | . 2 . 1 . . . . . . . . . . . . . . Launcher 3 | . 1 . . . 1 . . . . . . . . . 1 . . Special Weapon 8 | . . . . 2 . . . 1 . . 1 . . 1 3 . . Impact Weapon . | . . . . . . . . . . . . . . . . . . Slashing Weapon . | . . . . . . . . . . . . . . . . . . Piercing Weapon . | . . . . . . . . . . . . . . . . . . Special Melee Weapon 1 | . . . 1 . . . . . . . . . . . . . . Unidentified Prototypes 17 | . . . . 1 . 1 . 2 . . 2 2 . . 8 . 1 Parts Lost 44 | . 1 . 1 . 1 3 3 . 2 . 2 . 1 3 1 1 25 Power 3 | . 1 . . . . . . . . . . . . . . . 2 Propulsion 8 | . . . . . . 2 1 . 2 . 1 . . . . . 2 Utility 20 | . . . 1 . 1 1 1 . . . 1 . 1 1 . 1 12 Weapon 13 | . . . . . . . 1 . . . . . . 2 1 . 9 Highest Loss Streak 19 | . 1 . 1 . 1 1 3 . 2 . 1 . 1 3 1 1 19 To Critical Strikes 2 | . . . . . . . . . . . . . . . . . 2 Average Backups 10 | 4 14 19 22 5 16 20 19 20 21 20 21 22 23 22 22 23 20 Power . | . . . . . . 1 1 1 1 1 1 1 1 . . . . Propulsion 1 | 2 5 5 4 1 . . . . . . . . . . . . . Utility 6 | . 3 6 9 3 7 9 12 13 14 14 15 15 14 15 17 16 12 Weapon 2 | 1 3 6 6 1 3 3 1 1 1 1 2 3 4 2 2 3 4 Tool/Special . | . . . . . . . . . . . . . . . . . . Unused Backups 27 | 1 . . 1 4 . 1 . . . . 3 3 1 2 3 . 8 Power 2 | . . . . . . . . . . . 1 . . 1 . . . Propulsion . | . . . . . . . . . . . . . . . . . . Utility 14 | . . . 1 1 . . . . . . 2 2 . 1 3 . 4 Weapon 7 | 1 . . . 3 . 1 . . . . . 1 1 . . . . Tool/Special 4 | . . . . . . . . . . . . . . . . . 4 Average Slot Usage (%) 94 | . 100 100 99 97 78 81 86 93 79 77 90 93 83 83 81 77 79 Engine 3 | . 14 14 14 3 . . . . . . . . . . . . . Core 4 | . . . . 7 5 5 5 2 . . . . . . . . . Reactor 3 | . . . . 3 . . . 2 5 5 5 5 5 5 4 4 3 Treads 3 | . 11 26 8 3 . . 4 11 2 . . . . . . . . Leg 3 | . . . . 5 . . 2 . . . . . . . . . . Wheel 4 | . 16 1 19 1 19 19 11 11 11 14 20 21 10 10 8 8 7 Hover 5 | . . . . 7 . . . . . . . . . . . . . Flight 6 | . . . . 8 . . . . . . . . . . . . . Device 21 | . 12 12 5 23 17 20 23 19 20 25 19 19 20 19 19 11 18 Storage 3 | . 14 14 14 . 5 5 5 5 5 5 7 10 10 10 5 4 5 Processor 2 | . . . . 1 . . 1 5 5 5 5 5 5 10 4 8 7 Hackware 1 | . . . . . 4 . . . . . 5 6 5 5 8 4 2 Protection 4 | . 1 1 8 1 5 11 12 14 11 10 9 9 10 6 6 4 4 Energy Gun 8 | . 10 . . 6 16 11 8 10 8 9 13 15 15 14 16 17 12 Energy Cannon 5 | . . 8 20 6 . . . . . . . . . . 1 . . Ballistic Gun 2 | . 12 . . 2 . . 1 . . . . . . . 1 13 14 Ballistic Cannon 1 | . 5 19 2 1 . . . . . . . . . . . . . Launcher 2 | . . . . 3 . 3 4 5 5 1 1 . . . . . . Special Weapon 1 | . . . . 1 . . . . . . . . . . . . . Slashing Weapon 1 | . . . . 1 . . . . . . . . . . . . . Piercing Weapon 1 | . . . . 2 . . . . . . . . . . . . . Peak Build Rating 186 | 7 10 13 20 59 79 84 87 88 91 94 104 109 122 126 171 170 186 Average Rating 61 | 5 8 11 16 45 72 74 79 85 81 89 100 104 121 120 144 164 164 On Entrance 75 | . 7 9 13 20 43 73 84 86 88 75 94 103 102 119 126 163 160 Avg Prop Armor Cover (%) 12 | . . . . 13 . . 5 8 7 . . . 6 . . . . Naked Turns . | . . . . . . . . . . . . . . . . . . Heaviest Build 172 | 13 52 55 100 111 137 151 154 147 156 160 162 150 150 151 164 152 172 Greatest Support 75 | 32 40 40 40 75 44 44 34 24 24 44 60 44 44 40 40 40 40 Greatest Overweight (x) 49 | . 2 1 3 19 4 5 6 6 6 6 4 3 49 3 4 3 28 Average Overweight (x) 6 | . . 1 1 6 3 3 5 5 5 4 3 3 35 3 3 3 3 Largest Inventory Capacity 25 | 8 20 20 25 25 25 25 25 25 25 25 25 25 25 25 25 25 25 Average Capacity 11 | 7 19 20 23 5 25 25 25 25 25 25 25 25 25 25 25 25 25 Most Carried 25 | 7 20 20 25 25 24 25 25 25 25 24 25 25 25 25 25 25 25 Average Carried 11 | 4 14 19 22 5 19 24 23 24 24 22 23 23 24 23 23 24 22 Final Capacity 25 | 8 20 20 25 25 25 25 25 25 25 25 25 25 25 25 25 25 25 Final Carried 25 | 7 20 19 25 25 21 25 24 24 25 22 25 20 25 25 25 25 14 Scrap Suit Usage (%) 5 | . . . . . 95 . 1 8 1 68 53 . 8 88 64 88 97 Parts Cannibalized 52 | . . . . . 1 . 1 2 2 1 7 . 6 1 8 7 16 Transmogrified Parts 965 | . . . . 965 . . . . . . . . . . . . . Integrity Recovered 175 | . . . . 175 . . . . . . . . . . . . . Class Distribution -------------------- 74% | Mutant 18% | Scavenger-Scrapper 3% | Tank Dominant Class ---------------- Mutant | -10/Materials Mutant | -10/Mines Mutant | -10/Subcaves Mutant | -7/Scraptown Tank | -5/Factory Tank | -5/Upper Caves Tank | -5/Upper Caves Derelict-Tank | -5/Zhirov Tank | -4/Proximity Caves Mutant | -4/Factory Scavenger-Tank | -4/Extension Scavenger-Tank | -4/Cetus Scavenger-Scrapper | -4/Archives Scavenger-Scrapper | -4/Hub_04(d) Scavenger-Scrapper | -3/Research Scavenger-Scrapper | -3/Quarantine Scavenger-Scrapper | -3/Protoforge Resources | -11 -10 -10 -10 -7 -5 -5 -5 -5 -4 -4 -4 -4 -4 -4 -3 -3 -3 ----------- Run | Yrd Mat Min Sub Scr Fac Upp Upp Zhi Pro Fac Ext Cet Arc Hub Res Qua Frg Matter Collected 5195 | 278 403 165 162 61 176 476 282 100 545 211 520 120 35 125 696 205 635 Remotely . | . . . . . . . . . . . . . . . . . . Salvage Created 9660 | 149 977 121 504 . 266 950 856 243 292 211 746 194 323 383 1040 1009 1396 Parts 409 | 13 50 12 38 . 10 43 22 6 13 3 21 7 14 10 22 53 72 Haulers Intercepted 6 | . 1 . . . 1 1 . . . . . . . . 3 . . Recyclers Shooed 7 | . 5 . . . . . . . . . 1 . . . . 1 . Parts Field Recycled . | . . . . . . . . . . . . . . . . . . Retrieved Matter . | . . . . . . . . . . . . . . . . . . Parts Self-Destructed 65 | . . . 3 . . 27 18 4 13 . . . . . . . . Prevented . | . . . . . . . . . . . . . . . . . . Parts Restored . | . . . . . . . . . . . . . . . . . . Kills | -11 -10 -10 -10 -7 -5 -5 -5 -5 -4 -4 -4 -4 -4 -4 -3 -3 -3 ------- Run | Yrd Mat Min Sub Scr Fac Upp Upp Zhi Pro Fac Ext Cet Arc Hub Res Qua Frg Combat Hostiles Destroyed 140 | . 7 5 9 . 3 32 18 . 13 . 9 2 . 2 9 12 19 Guns 57 | . 7 . . . . 3 8 . 3 . 7 . . . 3 8 18 Cannons 15 | . . 5 9 . . . . . . . . . . . 1 . . AOE 53 | . . . . . 3 28 9 . 10 . . . . 1 2 . . Classes Destroyed 23 | 2 4 2 2 . . 2 3 . 3 . 1 . 1 . 1 1 1 Worker 6 | . 3 1 . . 1 . . . . 1 . . . . . . . Builder 6 | . . 1 . . 2 . . . . 1 . . . . . 2 . Tunneler 4 | 3 1 . . . . . . . . . . . . . . . . Hauler 6 | . 1 . . . 1 1 . . . . . . . . 3 . . Recycler 12 | 1 7 . . . . . . . . 1 1 . . 1 . 1 . Minesweeper 1 | . . . . . . . . . 1 . . . . . . . . Operator 11 | . . . . . . . . . . . . . 9 2 . . . Drone 2 | . . . . . . . . . 2 . . . . . . . . Watcher 8 | . 3 . . . . . . . . . . 1 . . 2 2 . Swarmer 28 | . . 3 . . . 16 1 . 8 . . . . . . . . Grunt 46 | . 7 2 2 . 3 14 8 . . . 3 . . 1 5 1 . Brawler 5 | . . . . . . . 4 . 1 . . . . . . . . Duelist 1 | . . . . . . . . . 1 . . . . . . . . Protector 1 | . . . . . . . 1 . . . . . . . . . . Sentry 15 | . . . . . . 2 2 . 1 . 3 . . . 1 . 6 Specialist 1 | . . . . . . . . . . . . . . . 1 . . Hunter 7 | . . . . . . . 2 . . . 1 . . . 1 3 . Programmer 19 | . . . . . . . . . . . 2 . . . 1 7 9 Cetus Guard 2 | . . . . . . . . . . . . 2 . . . . . Lightning 1 | . . . . . . . . . . . . . . 1 . . . Hotshot 2 | . . . . . . . . . . . . . . . . . 2 Decapitator 2 | . . . . . . . . . . . . . . . . . 2 Alpha 7 1 | . . . . . . . . . . . . . . . . 1 . Artisan 1 | . . . 1 . . . . . . . . . . . . . . Subdweller 7 | . . . 7 . . . . . . . . . . . . . . Samaritan 1 | . . . . . . 1 . . . . . . . . . . . Best Kill Streak 6 | 4 5 3 2 . 4 5 6 . 5 1 4 1 3 1 6 6 4 Combat Bots Only 6 | . 4 3 2 . 3 5 6 . 5 . 4 1 . 1 4 3 4 Max Kills in Single Turn 4 | 1 1 1 1 . 2 4 3 . 4 1 1 1 1 1 2 2 2 Gunslinging 1 | . . . . . . . . . . . . . . . . . 1 Exploded 4 | . . . . . 2 4 3 . 4 . . . . 1 2 . . Melee . | . . . . . . . . . . . . . . . . . . Uniques/NPCs Destroyed . | . . . . . . . . . . . . . . . . . . Combat | -11 -10 -10 -10 -7 -5 -5 -5 -5 -4 -4 -4 -4 -4 -4 -3 -3 -3 -------- Run | Yrd Mat Min Sub Scr Fac Upp Upp Zhi Pro Fac Ext Cet Arc Hub Res Qua Frg Hostile Shots Fired 779 | . 49 18 15 . 52 51 47 . 32 5 57 9 9 29 84 95 227 Missed 198 | . 15 1 4 . 12 20 16 . 11 4 20 5 2 8 27 28 25 Hits 581 | . 34 17 11 . 40 31 31 . 21 1 37 4 7 21 57 67 202 Melee 1 | . . . . . . . . . . . . . . . . . 1 Projectile 580 | . 34 17 11 . 40 31 31 . 21 1 37 4 7 21 57 67 201 AOE 1 | . . . 1 . . . . . . . . . . . . . . Critical Strikes 41 | . 2 . . . 3 4 1 . . . . 1 . 2 3 3 22 Actively Blocked 1 | . . . . . . . . . . . . . . . 1 . . Part Disruptions 1 | . . . . . . . . . . . . . . . . . 1 Damage Taken 12158 | . 453 232 293 . 704 637 624 . 266 12 537 91 175 704 1108 943 5379 Core 1691 | . 96 23 38 . 63 64 73 . . . 19 29 . 24 57 110 1095 Absorbed by Shields 1919 | . . . . . . . 199 . 256 13 257 60 53 137 172 . 772 Redirected to Shielding 299 | . . . . . . . . . 9 . . . . . 200 90 . Ignored by Resistances 1620 | . . . . . . . 12 . 28 . 72 . . . 231 314 963 Regen/Repaired (Parts) 959 | . . . . . 6 . 10 16 19 10 94 . 148 129 367 33 127 Core Remaining (%) 77 | 100 . . . 37 . . . . 80 . . . . 93 . . . Volleys Fired 596 | 8 77 15 40 . 35 43 43 16 19 11 48 9 17 27 65 49 74 Largest 7 | 2 2 2 2 . 3 3 2 2 2 2 3 2 3 3 5 7 5 Hottest 560 | 60 85 105 155 . 207 146 159 126 178 126 191 200 226 300 430 560 380 Shots Fired 1098 | 16 152 30 50 . 43 64 73 22 30 21 94 18 51 51 98 115 170 Gun 924 | 16 132 . . . 40 39 64 20 22 20 92 18 51 49 81 115 165 Cannon 113 | . 18 30 50 . . . . . . . . . . . 12 . 3 Launcher 51 | . 2 . . . 3 25 9 . 8 1 . . . . 1 . 2 Special 10 | . . . . . . . . 2 . . 2 . . 2 4 . . Kinetic 257 | 8 104 23 . . . . 18 . . . . . . . . 10 94 Thermal 751 | 8 46 7 50 . 40 39 46 20 22 20 83 12 51 49 79 105 74 Explosive 51 | . 2 . . . 3 25 9 . 8 1 . . . . 1 . 2 Electromagnetic 29 | . . . . . . . . . . . 9 6 . . 14 . . Robot Hit Streak 33 | 7 10 7 11 . 21 22 12 9 11 21 15 11 15 13 24 33 17 Robot Miss Streak 5 | 2 4 1 2 . . 2 3 2 3 2 3 1 2 5 2 4 3 Penetration Max 2 | . . . . . . . . . . . . . . . 1 1 2 Secondary Targets 6 | . . . . . . . . . . . . . . . 1 1 4 Max Gunslinging Chain 1 | . . . . . . . . . . . . . . . 1 1 1 Shots Hit Robots 678 | 10 90 20 30 . 15 34 48 17 22 13 73 16 34 28 53 69 106 Core Hits 397 | 6 42 7 12 . 13 75 49 2 25 8 29 4 17 7 22 33 46 Critical Kills 5 | . 1 . . . . . . . . . . . . . . 1 3 Critical Parts Destroyed 11 | . 1 . . . . 4 . . . . . . . . . . 6 Critical Strikes 71 | . 2 2 . . . 4 3 2 5 3 6 3 11 4 12 3 11 Burn 47 | . . . . . . . 2 2 5 3 6 3 11 4 8 2 1 Destroy 18 | . 2 . . . . 4 1 . . . . . . . . 1 10 Blast 2 | . . 2 . . . . . . . . . . . . . . . Corrupt 4 | . . . . . . . . . . . . . . . 4 . . Melee Attacks . | . . . . . . . . . . . . . . . . . . Impact . | . . . . . . . . . . . . . . . . . . Slashing . | . . . . . . . . . . . . . . . . . . Piercing . | . . . . . . . . . . . . . . . . . . Sneak Attacks . | . . . . . . . . . . . . . . . . . . Combat Hostiles . | . . . . . . . . . . . . . . . . . . Follow-up Attacks . | . . . . . . . . . . . . . . . . . . Damage Inflicted 26105 | 99 1032 403 729 . 881 3834 2613 476 1458 456 2059 410 1030 1114 2719 2814 3978 Guns 16889 | 99 834 . . . 327 695 1169 476 569 343 2059 410 1030 1000 1377 2524 3977 Cannons 2068 | . 143 395 729 . . . . . . . . . . . 801 . . Explosions 7139 | . 55 . . . 554 3139 1444 . 889 113 . . . 114 541 290 . Melee . | . . . . . . . . . . . . . . . . . . Ramming 9 | . . 8 . . . . . . . . . . . . . . 1 Kinetic 3890 | 23 602 270 . . . . 227 . . . . . . . . 216 2552 Thermal 14144 | 76 375 125 729 . 327 695 942 476 569 343 1910 305 1030 1000 1509 2308 1425 Explosive 6857 | . 55 . . . 554 3139 1444 . 889 113 . . . . 373 290 . Electromagnetic 1205 | . . . . . . . . . . . 149 105 . 114 837 . . Impact . | . . . . . . . . . . . . . . . . . . Slashing . | . . . . . . . . . . . . . . . . . . Piercing . | . . . . . . . . . . . . . . . . . . Highest Corruption 39 | . . . . . . . . . . . . . . 2 3 4 39 Average Corruption 5 | . . . . . . . . . . . . . . 1 1 3 12 Corruption Purged . | . . . . . . . . . . . . . . . . . . Corruption Blocked . | . . . . . . . . . . . . . . . . . . Effects 89 | . . . . . . . . . . . . . . . 11 23 55 Message Errors 17 | . . . . . . . . . . . . . . . 6 4 7 Matter Fused 18 | . . . . . . . . . . . . . . . 2 5 11 Heat Flow Errors 11 | . . . . . . . . . . . . . . . 1 2 8 Energy Discharges 8 | . . . . . . . . . . . . . . . . 1 7 Parts Rejected 2 | . . . . . . . . . . . . . . . . 1 1 Parts Fused 1 | . . . . . . . . . . . . . . . . . 1 Data Loss (minor) 11 | . . . . . . . . . . . . . . . 1 2 8 Data Loss (major) 6 | . . . . . . . . . . . . . . . . 5 1 Misfires 2 | . . . . . . . . . . . . . . . . 1 1 Alerts 1 | . . . . . . . . . . . . . . . . 1 . Weapon Failures 12 | . . . . . . . . . . . . . . . 1 1 10 Overload Shots 4 | . . . . . . 1 2 . 1 . . . . . . . . Overflow Damage 161 | . . . . . . 51 29 . . . . . . . 57 24 . Projectiles 57 | . . . . . . . . . . . . . . . 57 . . Explosions 104 | . . . . . . 51 29 . . . . . . . . 24 . Melee . | . . . . . . . . . . . . . . . . . . Knockbacks . | . . . . . . . . . . . . . . . . . . Impact . | . . . . . . . . . . . . . . . . . . Kinetic . | . . . . . . . . . . . . . . . . . . Secondary . | . . . . . . . . . . . . . . . . . . Self-Inflicted Damage 279 | . . . . . . . 30 . 53 . . . . 98 98 . . Shots 6 | . . . . . . . 1 . 2 . . . . 1 2 . . Rammed 1 | . . . . . . . . . . . . . . . . . 1 Targets Rammed 2 | . . 1 . . . . . . . . . . . . . . 1 Kicked . | . . . . . . . . . . . . . . . . . . Crushed 1 | . . 1 . . . . . . . . . . . . . . . Highest Temperature 510 | 40 243 218 168 . 261 10 112 40 154 28 136 230 232 385 510 374 390 Average Temperature 85 | 25 68 122 55 . 92 3 54 21 60 13 32 112 95 112 102 147 105 Received Heat Transfer 1719 | . 294 87 69 . 255 228 133 . 24 . 75 . 9 45 57 78 365 Effects 6 | . . . . . . . . . . . . . . . 5 1 . Shutdowns 3 | . . . . . . . . . . . . . . . 2 1 . Interference 3 | . . . . . . . . . . . . . . . 3 . . Siege Activations . | . . . . . . . . . . . . . . . . . . Martial Activations . | . . . . . . . . . . . . . . . . . . Shielding Activations . | . . . . . . . . . . . . . . . . . . Robots Disrupted . | . . . . . . . . . . . . . . . . . . Combat Hostiles . | . . . . . . . . . . . . . . . . . . Robots Corrupted 4 | . . . . . . . . . . . . 1 . . 3 . . Combat Hostiles 4 | . . . . . . . . . . . . 1 . . 3 . . Parts Fried 10 | . . . . . . . . . . . . 1 . . 9 . . Impact Corruptions . | . . . . . . . . . . . . . . . . . . Robots Melted 14 | . . . . . . 1 . 1 . . 2 1 1 1 2 4 1 Combat Hostiles 11 | . . . . . . 1 . 1 . . 2 1 . 1 . 4 1 Parts Melted 87 | . 1 . 1 . . 3 6 2 1 4 16 4 9 7 8 22 3 Heat Transferred 26081 | 175 859 185 1036 . 522 999 1510 855 1383 859 3578 850 2846 1924 2900 3550 2050 Parts Sabotaged . | . . . . . . . . . . . . . . . . . . Parts Stolen . | . . . . . . . . . . . . . . . . . . Parts Stripped . | . . . . . . . . . . . . . . . . . . Power Chain Reactions 2 | . . . . . . . . . . . . . . . 2 . . Alert | -11 -10 -10 -10 -7 -5 -5 -5 -5 -4 -4 -4 -4 -4 -4 -3 -3 -3 ------- Run | Yrd Mat Min Sub Scr Fac Upp Upp Zhi Pro Fac Ext Cet Arc Hub Res Qua Frg Maximum Alert Level 3 | . . . . . . . . . . . 1 1 . 1 3 3 2 Low Security (%) 89 | 100 100 100 . . 100 . . . . 100 92 77 100 99 46 . . Level 1 3 | . . . . . . . . . . . 7 22 . . 16 . 56 Level 2 4 | . . . . . . . . . . . . . . . 9 72 43 Level 3 2 | . . . . . . . . . . . . . . . 27 27 . Level 4 . | . . . . . . . . . . . . . . . . . . Level 5 . | . . . . . . . . . . . . . . . . . . High Security . | . . . . . . . . . . . . . . . . . . Max Security . | . . . . . . . . . . . . . . . . . . Peak Influence 818 | 10 79 60 . . 111 . . . . 150 227 236 174 233 818 764 604 Initial 448 | . . . . . . . . . . 150 43 102 70 . 122 448 397 Average 61 | 1 10 4 . . 8 . . . . 107 96 159 2 60 352 609 406 Influence Increases 7380 | 20 275 132 50 . 158 776 485 15 270 209 728 364 275 637 1432 817 737 Destroy 0b10 Robot/C 3540 | . 140 100 40 . 60 660 380 . 220 . 360 160 80 160 560 240 380 Destroy 0b10 Robot/NC 340 | 20 75 10 . . 20 5 5 15 15 15 30 10 45 25 25 25 . Destroy Leader 450 | . 38 20 10 . 12 40 30 . 20 . 44 . . 32 120 24 60 Allied During Kill 1039 | . . . . . . 11 25 . . . 183 170 114 147 389 . . Trap Triggered on 0b10 10 | . . . . . . . . . . . . . . 10 . . . Successful Hack 158 | . 6 . . . 6 . . . . 4 28 . . . 80 34 . Disable Machine 315 | . . . . . . . . . . . . . 30 75 30 120 60 Destroy Structure 898 | . 16 2 . . 60 . . . . 40 38 24 6 188 168 164 192 Advance Influence 150 | . . . . . . . . . . 150 . . . . . . . Lose Combat Pursuer 480 | . . . . . . 60 45 . 15 . 45 . . . 60 210 45 Influence Decreases 6982 | 20 273 134 50 . 63 620 581 170 270 120 633 372 451 404 867 908 1046 Entered New Map 1247 | . . 2 . . . 36 49 155 . . 46 82 106 . 111 350 310 Time Decay 4671 | 20 263 132 50 . 63 534 482 15 270 120 547 230 275 240 546 398 486 Lost Part 400 | . 10 . . . . 30 30 . . . 20 . 10 30 10 10 250 Lost Ally 514 | . . . . . . 20 20 . . . 20 60 60 134 200 . . Purge Threat 150 | . . . . . . . . . . . . . . . . 150 . Squads Dispatched 30 | . . . . . 4 . 1 . . . . . . 2 12 6 5 Investigation 8 | . . . . . 2 . . . . . . . . . 6 . . Extermination 8 | . . . . . . . . . . . . . . 1 1 3 3 Reinforcement 7 | . . . . . 1 . . . . . . . . 1 5 . . Assault 6 | . . . . . . . 1 . . . . . . . . 3 2 Garrison 1 | . . . . . 1 . . . . . . . . . . . . Intercept . | . . . . . . . . . . . . . . . . . . Searches Triggered . | . . . . . . . . . . . . . . . . . . Construction Impeded 1 | . . . . . . . . . . . . . . . 1 . . Haulers Reinforced 3 | . . . . . . . . . . . . . . . 3 . . Active Scanning Responses . | . . . . . . . . . . . . . . . . . . Cargo Convoy Interrupts . | . . . . . . . . . . . . . . . . . . Stealth | -11 -10 -10 -10 -7 -5 -5 -5 -5 -4 -4 -4 -4 -4 -4 -3 -3 -3 --------- Run | Yrd Mat Min Sub Scr Fac Upp Upp Zhi Pro Fac Ext Cet Arc Hub Res Qua Frg Distress Signals 10 | . . . . . . . . . . . . 2 . 1 4 3 . Communications Jammed 2 | . . . . . . . . . . . . . . . . . 2 Distress Signals 2 | . . . . . . . . . . . . . . . . . 2 Times Spotted 268 | . 12 5 11 . 8 25 21 . 12 3 24 11 18 20 41 37 20 Peak Tracking Total 14 | . 4 3 2 . 5 5 8 . 4 5 4 5 2 5 6 14 5 Tactical Retreats 19 | . . . . . . 3 3 . 1 . 2 . . . 3 6 1 Traps | -11 -10 -10 -10 -7 -5 -5 -5 -5 -4 -4 -4 -4 -4 -4 -3 -3 -3 ------- Run | Yrd Mat Min Sub Scr Fac Upp Upp Zhi Pro Fac Ext Cet Arc Hub Res Qua Frg Traps Triggered 12 | . . . . . 2 . . . . . 1 . . . 1 . 8 Indirectly . | . . . . . . . . . . . . . . . . . . Trap Hack Attempts 70 | . . . 70 . . . . . . . . . . . . . . Triggered . | . . . . . . . . . . . . . . . . . . Disarmed 1 | . . . 1 . . . . . . . . . . . . . . Reprogrammed 4 | . . . 4 . . . . . . . . . . . . . . Reused 1 | . . . . . . . . . . . . . . 1 . . . Traps Extracted 4 | . . . 4 . . . . . . . . . . . . . . Installed 2 | . . . . . . . . . . . . . . 2 . . . Triggered 1 | . . . . . . . . . . . . . . 1 . . . Most Traps Carried 6 | . . . 3 1 1 1 1 1 6 6 6 6 6 6 4 . . Machines | -11 -10 -10 -10 -7 -5 -5 -5 -5 -4 -4 -4 -4 -4 -4 -3 -3 -3 ---------- Run | Yrd Mat Min Sub Scr Fac Upp Upp Zhi Pro Fac Ext Cet Arc Hub Res Qua Frg Machines Disabled 28 | . . . 1 . . . 1 . . . . . 2 5 2 8 9 Max in Single Turn 3 | . . . 1 . . . 1 . . . . . . 3 1 2 2 Garrison Access 1 | . . . . . . . . . . . . . . . 1 . . Network Hub 2 | . . . . . . . . . . . . . . 2 . . . Machines Repaired . | . . . . . . . . . . . . . . . . . . Machines Dismantled . | . . . . . . . . . . . . . . . . . . Machines Sabotaged . | . . . . . . . . . . . . . . . . . . Overloaded Fab Kills . | . . . . . . . . . . . . . . . . . . Hacking | -11 -10 -10 -10 -7 -5 -5 -5 -5 -4 -4 -4 -4 -4 -4 -3 -3 -3 --------- Run | Yrd Mat Min Sub Scr Fac Upp Upp Zhi Pro Fac Ext Cet Arc Hub Res Qua Frg Machines Accessed 46 | . 3 1 1 2 5 . . 4 . 1 11 . . . 11 4 3 Terminals 26 | . 3 . . . 3 . . . . 1 11 . . . 3 3 2 Fabricators 3 | . . . . . 1 . . . . . . . . . 2 . . Repair Stations 1 | . . . . . . . . . . . . . . . 1 . . Recycling Units 5 | . . . . . 1 . . . . . . . . . 4 . . Scanalyzers . | . . . . . . . . . . . . . . . . . . Garrison Access 3 | . . . . . . . . . . . . . . . 1 1 1 Total Hacks 115 | . 6 1 1 11 11 . . 17 . 1 22 . . . 26 14 5 Successful 68 | . 2 1 1 11 2 . . 17 . 1 11 . . . 15 5 2 Failed 47 | . 4 . . . 9 . . . . . 11 . . . 11 9 3 Catastrophic 10 | . . . . . 1 . . . . . 4 . . . . 4 1 Database Lockouts . | . . . . . . . . . . . . . . . . . . Manual 41 | . 4 . . . 7 . . . . . 14 . . . 11 2 3 Terminals 60 | . 6 . . . 7 . . . . 1 22 . . . 8 12 4 Fabricators 8 | . . . . . 2 . . . . . . . . . 6 . . Repair Stations 3 | . . . . . . . . . . . . . . . 3 . . Recycling Units 10 | . . . . . 2 . . . . . . . . . 8 . . Scanalyzers . | . . . . . . . . . . . . . . . . . . Garrison Access 4 | . . . . . . . . . . . . . . . 1 2 1 Terminal Hacks 50 | . 1 1 1 11 1 . . 17 . 1 7 . . . 5 4 1 Record 10 | . . . . 5 . . . 5 . . . . . . . . . Part Schematic 6 | . . . . . . . . 4 . . 2 . . . . . . Robot Analysis 10 | . . . . 6 . . . 4 . . . . . . . . . Prototype ID Bank 5 | . . . . . . . . 4 . . . . . . . 1 . Open Door 8 | . . 1 . . . . . . . 1 5 . . . 1 . . Branch Access Points 3 | . 1 . . . 1 . . . . . . . . . 1 . . Alert Level 1 | . . . . . . . . . . . . . . . . 1 . Unreport Threat 1 | . . . . . . . . . . . . . . . . 1 . Locate Traps 1 | . . . . . . . . . . . . . . . . 1 . Hauler Manifests 2 | . . . . . . . . . . . . . . . 2 . . Zone Layout 1 | . . . . . . . . . . . . . . . 1 . . Proto ID Catalog 2 | . . . 1 . . . . . . . . . . . . . 1 Fabricator Hacks 2 | . . . . . . . . . . . . . . . 2 . . Load Schematic 1 | . . . . . . . . . . . . . . . 1 . . Build 1 | . . . . . . . . . . . . . . . 1 . . Repair Station Hacks 2 | . . . . . . . . . . . . . . . 2 . . Scan Component 1 | . . . . . . . . . . . . . . . 1 . . Repair 1 | . . . . . . . . . . . . . . . 1 . . Recycling Unit Hacks . | . . . . . . . . . . . . . . . . . . Scanalyzer . | . . . . . . . . . . . . . . . . . . Garrison Access Hacks 1 | . . . . . . . . . . . . . . . 1 . . Seal Access 1 | . . . . . . . . . . . . . . . 1 . . Unauthorized Hacks 13 | . 1 . . . 1 . . . . . 4 . . . 5 1 1 Terminals 8 | . 1 . . . . . . . . . 4 . . . 1 1 1 Assimilate 3 | . 1 . . . . . . . . . 1 . . . . . 1 Botnet 5 | . . . . . . . . . . . 3 . . . 1 1 . Fabricators . | . . . . . . . . . . . . . . . . . . Repair Stations . | . . . . . . . . . . . . . . . . . . Recycling Units 5 | . . . . . 1 . . . . . . . . . 4 . . Fedlink 3 | . . . . . 1 . . . . . . . . . 2 . . Scrapoids 2 | . . . . . . . . . . . . . . . 2 . . Scanalyzers . | . . . . . . . . . . . . . . . . . . Garrison Access . | . . . . . . . . . . . . . . . . . . Data Cores Recovered 3 | . . . . . . . . . . . 2 . . 1 . . . Used . | . . . . . . . . . . . . . . . . . . Hacking Detections 21 | . 2 . . . 4 . . . . 1 5 . . . 4 3 2 Full Trace Events 2 | . . . . . 1 . . . . . . . . . 1 . . Feedback Events . | . . . . . . . . . . . . . . . . . . Feedback Blocked . | . . . . . . . . . . . . . . . . . . Robot Schematics Acquired . | . . . . . . . . . . . . . . . . . . Robots Built . | . . . . . . . . . . . . . . . . . . Authchips . | . . . . . . . . . . . . . . . . . . Time . | . . . . . . . . . . . . . . . . . . Total Robot Build Rating . | . . . . . . . . . . . . . . . . . . Part Schematics Acquired 6 | . . . . . . . . 4 . . 2 . . . . . . Parts Built 1 | . . . . . . . . . . . . . . . 1 . . Authchips . | . . . . . . . . . . . . . . . . . . Time 76 | . . . . . . . . . . . . . . . 76 . . Total Part Build Rating 5 | . . . . . . . . . . . . . . . 5 . . Part Studies Acquired . | . . . . . . . . . . . . . . . . . . Parts Repaired 1 | . . . . . . . . . . . . . . . 1 . . Time 40 | . . . . . . . . . . . . . . . 40 . . Parts Recycled . | . . . . . . . . . . . . . . . . . . Recycled Matter . | . . . . . . . . . . . . . . . . . . Retrieved Matter . | . . . . . . . . . . . . . . . . . . Retrieved Components . | . . . . . . . . . . . . . . . . . . Parts Scanalyzed . | . . . . . . . . . . . . . . . . . . Part Schematics Acquired . | . . . . . . . . . . . . . . . . . . Parts Damaged . | . . . . . . . . . . . . . . . . . . Bothacking | -11 -10 -10 -10 -7 -5 -5 -5 -5 -4 -4 -4 -4 -4 -4 -3 -3 -3 ------------ Run | Yrd Mat Min Sub Scr Fac Upp Upp Zhi Pro Fac Ext Cet Arc Hub Res Qua Frg Used RIF Installer . | . . . . . . . . . . . . . . . . . . Robots Hacked . | . . . . . . . . . . . . . . . . . . Non-combat . | . . . . . . . . . . . . . . . . . . Combat . | . . . . . . . . . . . . . . . . . . Robot Hacks Applied . | . . . . . . . . . . . . . . . . . . Relay Couplers Released . | . . . . . . . . . . . . . . . . . . Fabnet Peak Effective % . | . . . . . . . . . . . . . . . . . . Robots Rewired 12 | . . . . . . 1 2 . . . 9 . . . . . . Allies Hacked . | . . . . . . . . . . . . . . . . . . Hacks Repelled . | . . . . . . . . . . . . . . . . . . Allies | -11 -10 -10 -10 -7 -5 -5 -5 -5 -4 -4 -4 -4 -4 -4 -3 -3 -3 -------- Run | Yrd Mat Min Sub Scr Fac Upp Upp Zhi Pro Fac Ext Cet Arc Hub Res Qua Frg Total Allies 40 | . 1 3 . . . 1 2 . . . 22 1 . . 10 . . Largest Group 21 | . 1 4 4 . . 1 2 . . . 21 21 17 14 10 . . Highest-Rated Group 846 | . 10 46 46 . . 30 78 . . . 846 846 767 634 646 . . Highest-Rated Ally 159 | . 10 16 16 . . 30 49 . . . 159 119 119 119 110 . . Initial UFD Resources 64 | . . . . . 39 49 49 49 52 52 52 52 52 52 56 64 64 Total Orders 32 | . 8 2 3 . . 4 2 . . . 4 3 2 4 . . . STAY 19 | . 4 1 2 . . 2 1 . . . 2 2 2 3 . . . FOLLOW 13 | . 4 1 1 . . 2 1 . . . 2 1 . 1 . . . Ally Attacks 488 | . . . 27 . . 2 14 . . . 72 81 37 86 169 . . Total Damage 12308 | . . . 371 . . 33 388 . . . 2180 1677 873 2792 3994 . . Kills 61 | . . . 2 . . 1 3 . . . 14 8 4 9 20 . . Allies Corrupted 4 | . . . . . . . . . . . . . . 4 . . . Allies Melted 1 | . . . . . . . . . . . . . . . 1 . . Intel | -11 -10 -10 -10 -7 -5 -5 -5 -5 -4 -4 -4 -4 -4 -4 -3 -3 -3 ------- Run | Yrd Mat Min Sub Scr Fac Upp Upp Zhi Pro Fac Ext Cet Arc Hub Res Qua Frg Active Infowar (turns) 39489 | 45 1472 777 422 29597 584 1502 1248 316 540 240 889 . . 75 605 474 703 Optics 1606 | . . . . 1606 . . . . . . . . . . . . . Sensors 2002 | . . . . 2002 . . . . . . . . . . . . . IFF 8557 | . . . . 2702 5 1473 1248 316 540 240 563 . . . 414 474 582 Terrain 2700 | . . . . 2700 . . . . . . . . . . . . . Traps 2192 | . . . . 1600 . . . . . . 326 . . 75 191 . . Seismic 4118 | 45 1472 777 422 . 584 818 . . . . . . . . . . . Decoding 2492 | . . . . 2492 . . . . . . . . . . . . . Machine Analysis 3680 | . . . . 3680 . . . . . . . . . . . . . Triangulation 1030 | . . . . 1030 . . . . . . . . . . . . . Cloaking 450 | . . . . 450 . . . . . . . . . . . . . Spoofing 7069 | . . . . 7069 . . . . . . . . . . . . . Jamming 4643 | . . . . 4128 . . . . . . . . . . . . 515 ECM 138 | . . . . 138 . . . . . . . . . . . . . Robot Analysis Total 10 | . . . . 6 . . . 4 . . . . . . . . . Derelict Logs Recovered 10 | . . 2 1 3 . 1 1 . 2 . . . . . . . . Drone Launches . | . . . . . . . . . . . . . . . . . . Drone Recoveries . | . . . . . . . . . . . . . . . . . . Exploration | -11 -10 -10 -10 -7 -5 -5 -5 -5 -4 -4 -4 -4 -4 -4 -3 -3 -3 ------------- Run | Yrd Mat Min Sub Scr Fac Upp Upp Zhi Pro Fac Ext Cet Arc Hub Res Qua Frg Turns Passed 136970 | 118 1618 1937 6110 92450 588 1502 1248 316 2577 240 1689 484 21673 636 1562 954 1268 Spaces Moved 36234 | 69 974 747 1458 23739 330 1003 714 172 1542 127 913 238 1207 482 1138 686 695 Core 21936 | 5 . . . 21084 . . . . . . . . 846 . . . 1 Treads 1592 | . 199 702 613 78 . . . . . . . . . . . . . Legs 339 | . . . . 339 . . . . . . . . . . . . . Wheels 11983 | 64 775 45 845 1854 330 1003 714 172 1542 127 913 238 361 482 1138 686 694 Hover 258 | . . . . 258 . . . . . . . . . . . . . Flight 126 | . . . . 126 . . . . . . . . . . . . . Fastest Speed 50 | 50 90 105 120 50 108 108 135 133 145 121 108 121 100 100 100 100 100 Average Speed 357 | 96 131 231 175 389 122 124 154 150 152 138 121 121 1779 100 100 100 107 Slowest Speed 2500 | 100 240 240 240 1000 135 145 157 157 157 157 135 121 2500 100 110 100 1450 Overloaded Moves . | . . . . . . . . . . . . . . . . . . Propulsion Burnouts . | . . . . . . . . . . . . . . . . . . Robots Hopped 2 | . . . . . . . . . . . . 2 . . . . . Potential Cave-ins 21 | . . . . . . . . . . . . . . 1 . . 20 Cave-ins Triggered 4 | . . . . . . . . . . . . . . . . . 4 Exploration Rate (%) 57 | 4 93 99 45 86 15 81 77 60 86 4 83 56 98 26 27 72 23 Regions Visited 17 Branch Regions 13 Pre-discovered Areas 8 | . . 1 . 2 . . . 3 1 . . . . . 1 . . Known Exits Taken 4 | . 1 . . . 1 . . . . . . . . 1 1 . . Unknown Exits Taken 13 | 1 . 1 1 1 . 1 1 1 1 1 1 1 1 . . 1 . Scrap Searched 18 | . . 1 2 6 . 3 1 . 5 . . . . . . . . Spaces Dug 54 | . . . . . 10 . . . . . 1 . . 3 10 7 23 Terrain Destroyed 873 | . 18 2 . . 32 242 84 . 71 20 7 1 1 186 35 78 96 Melee . | . . . . . . . . . . . . . . . . . . Projectile 170 | . . 2 . . 16 . 2 . . 1 7 1 1 11 15 18 96 AOE 703 | . 18 . . . 16 242 82 . 71 19 . . . 175 20 60 . Terrain Rammed . | . . . . . . . . . . . . . . . . . . Walls Destroyed . | . . . . . . . . . . . . . . . . . . Machines Disabled . | . . . . . . . . . . . . . . . . . . Actions | -11 -10 -10 -10 -7 -5 -5 -5 -5 -4 -4 -4 -4 -4 -4 -3 -3 -3 --------- Run | Yrd Mat Min Sub Scr Fac Upp Upp Zhi Pro Fac Ext Cet Arc Hub Res Qua Frg Total 42997 | 103 1171 922 4956 23796 490 1195 798 210 1745 174 1429 425 1385 614 1499 922 1163 Wait 5382 | 11 83 138 3359 4 91 117 16 2 173 30 332 147 146 77 189 166 301 Move 36211 | 68 973 746 1457 23738 329 1002 713 171 1541 126 912 234 1206 481 1137 685 692 Hop 1 | . . . . . . . . . . . . 1 . . . . . Pick Up 150 | 8 13 6 11 23 5 8 5 4 2 . 11 8 6 6 21 3 10 Fast Attach 53 | 7 . . . 10 3 1 3 7 . 2 4 2 3 1 4 2 4 Attach 77 | . 1 1 1 . 8 6 5 1 1 4 5 7 1 3 13 1 19 Detach 22 | . . 1 . . 1 2 . . 1 1 4 1 . . 7 . 4 Swap 145 | . 22 7 13 3 1 2 2 1 5 . 16 2 . 10 36 11 14 Drop 131 | 1 2 7 5 18 1 5 4 8 3 . 10 14 6 7 26 5 9 Fire 596 | 8 77 15 40 . 35 43 43 16 19 11 48 9 17 27 65 49 74 Melee . | . . . . . . . . . . . . . . . . . . Ram 1 | . . . . . . . . . . . . . . . . . 1 Kick . | . . . . . . . . . . . . . . . . . . Crush 1 | . . 1 . . . . . . . . . . . . . . . Escape Stasis 59 | . . . . . 16 . . . . . 8 . . . . . 35 Rewire 95 | . . . . . . 9 7 . . . 79 . . . . . . Trap 72 | . . . 70 . . . . . . . . . . 2 . . . Miscellaneous 1 | . . . . . . . . . . . . . . . 1 . . Route ------- -11/Scrapyard -10/Materials (discovered 4 exits: [*Mat x3] / *Min) -10/Mines (discovered 4 exits: [*Mat x2] / [*Exi] / *Sub) -10/Subcaves (discovered 2 exits: [*Mat] / *Scr) -7/Scraptown (discovered 2 exits: *Fac x2) -5/Factory (discovered 2 exits: *Upp x2) -5/Upper Caves -5/Upper Caves -5/Zhirov -4/Proximity Caves -4/Factory (discovered 5 exits: Res / Upp x2 / *Ext / Arm) -4/Extension (discovered 2 exits: *Res / [*Cet]) -4/Cetus (discovered 2 exits: *Res / [*Arc]) -4/Archives (discovered 3 exits: *Res / *Hub x2) -4/Hub_04(d) -3/Research (discovered 2 exits: *Qua x2) -3/Quarantine (discovered 3 exits: [*Res] / [*Sec] / *Frg) -3/Protoforge History --------- Turn | Location | Event 16 | -11/Scrapyard | Discovered new exit (range 15) 119 | -11/Scrapyard | Entered Materials 317 | -10/Materials | Build established: Mutant 1046 | -10/Materials | Discovered new exit (range 13) 1287 | -10/Materials | Discovered new exit (range 16) 1501 | -10/Materials | Discovered new exit (range 5) 1608 | -10/Materials | Identified exit to Mines 1737 | -10/Materials | Entered Mines 1737 | -10/Mines | Accompanied by 1 ally 1764 | -10/Mines | Deemed a non-threat by the Exiles lab entrance 1764 | -10/Mines | Discovered new exit (range 5) 1834 | -10/Mines | Met a Derelict bent on vengeance 1950 | -10/Mines | Learned location of Zion (-7) 2217 | -10/Mines | Learned Materials stockpile data 2315 | -10/Mines | Discovered new exit (range 15) 2348 | -10/Mines | Met a Derelict who couldn't figure out how to use a Trap Extractor 2968 | -10/Mines | Discovered new exit (range 7) 3237 | -10/Mines | Assisted by bots powering up and referring to "LRC-V3" 3504 | -10/Mines | Discovered new exit (range 9) 3537 | -10/Mines | Build established: Commander-Mutant 3674 | -10/Mines | Entered Subcaves 3674 | -10/Subcaves | Accompanied by 4 allies 3675 | -10/Subcaves | Approached by a straggling Scientist 3727 | -10/Subcaves | A swath of the cavern ceiling suddenly collapsed 3931 | -10/Subcaves | Scientist uncovered a shortcut to Scraptown 3939 | -10/Subcaves | Shifting Twisted Machinery released Battle Cannon 4021 | -10/Subcaves | Build established: Mutant 4029 | -10/Subcaves | Visited 4L-MR0's lab 4434 | -10/Subcaves | Discovered new exit (range 7) 4789 | -10/Subcaves | Ambushed by angry Subdweller bent on revenge 5523 | -10/Subcaves | A Subdweller sparked back to life 5523 | -10/Subcaves | A Subdweller sparked back to life 5531 | -10/Subcaves | Core integrity fell below 50% 5566 | -10/Subcaves | Found Rainbow Chip 5882 | -10/Subcaves | Learned Materials security intel 6067 | -10/Subcaves | Found Prototype Device 6072 | -10/Subcaves | Found Gun Armor 9784 | -10/Subcaves | Entered Scraptown 9933 | -7/Scraptown | Visited Spacefarers 9961 | -7/Scraptown | Visited The Evicted 9986 | -7/Scraptown | Visited Cave Peace 10032 | -7/Scraptown | Scanned Subdweller tech in exchange for log data 10034 | -7/Scraptown | Learned location of Testing (-2) 10037 | -7/Scraptown | Learned 8 Factory zone layouts 10068 | -7/Scraptown | Heard Great Nut preacher, LISTEN AND RECITE! 10072 | -7/Scraptown | Discovered new exit (range 13) 10264 | -7/Scraptown | Visited TADAMA 10303 | -7/Scraptown | Visited Symbiants 10508 | -7/Scraptown | Visited UFD Registry 10519 | -7/Scraptown | Registered with UFD as "Hellslider" 10536 | -7/Scraptown | Visited CPS Storage 10608 | -7/Scraptown | Visited Modified Component R&D 10634 | -7/Scraptown | Visited Botcube Research 10659 | -7/Scraptown | Visited Derelict Rescue Squad 10680 | -7/Scraptown | Visited Abandonware Association 10693 | -7/Scraptown | Learned abandonware demo "SHUTEYE.EXE" 10693 | -7/Scraptown | Learned abandonware demo "MELTYB.EXE" 10721 | -7/Scraptown | Visited Scrapoid Pod Storage 10740 | -7/Scraptown | Visited Analyses Database 10769 | -7/Scraptown | Visited LU-1G1's Boring Crew 10801 | -7/Scraptown | Visited Curators Association 10850 | -7/Scraptown | Visited Scrap Suit Storage 10978 | -7/Scraptown | Delivered Scrap Shield to a Scientist 11339 | -7/Scraptown | Identified Sfc. Transmogrifier 11487 | -7/Scraptown | Visited CR-KLE's Repair Center 61312 | -7/Scraptown | Build established: Gladiator 61939 | -7/Scraptown | Build established: Mutant 67430 | -7/Scraptown | Build established: Hacker-Mutant 67829 | -7/Scraptown | Build established: Mutant 85765 | -7/Scraptown | Build established: Derelict-Mutant 86145 | -7/Scraptown | Build established: Mutant 101752 | -7/Scraptown | Found Scrap Suit 101893 | -7/Scraptown | Found Scrapoid Pod 102049 | -7/Scraptown | Found Botcube 102086 | -7/Scraptown | Found DRS Beacon 102151 | -7/Scraptown | Met Optimus 102151 | -7/Scraptown | Accepted into 0bPrime 102228 | -7/Scraptown | Discovered new exit (range 5) 102234 | -7/Scraptown | Entered Factory 102234 | -5/Factory | Evolved 10 slots: Propulsion x2, Utility x7, Weapon x1 102368 | -5/Factory | Loaded intel: 8 recycling unit locations 102546 | -5/Factory | Build established: Tank 102644 | -5/Factory | Identified exit to Upper Caves 102785 | -5/Factory | Garrison activated, responded to threat 102822 | -5/Factory | Entered Upper Caves 102824 | -5/Upper Caves | UFD Scientist delivered a prototype 102825 | -5/Upper Caves | Found Prototype Protection 102825 | -5/Upper Caves | Identified Enh. Scrap Shield 103137 | -5/Upper Caves | Spotted B-75 Beast 103230 | -5/Upper Caves | Encountered a Warlord checkpoint 103236 | -5/Upper Caves | Attracted the attention of an 0b10 checkpoint 103583 | -5/Upper Caves | Attracted the attention of an 0b10 outpost 104102 | -5/Upper Caves | Learned 8 Factory zone layouts 104102 | -5/Upper Caves | Discovered new exit (range 10) 104324 | -5/Upper Caves | Entered another Upper Caves area 104335 | -5/Upper Caves | Attracted the attention of an 0b10 outpost 104392 | -5/Upper Caves | Lost 3 parts (1n1u1w) 105021 | -5/Upper Caves | Learned 8 Factory zone layouts 105093 | -5/Upper Caves | Attracted the attention of an 0b10 checkpoint 105204 | -5/Upper Caves | Encountered a Warlord checkpoint 105340 | -5/Upper Caves | Discovered new exit (range 8) 105558 | -5/Upper Caves | Build established: Derelict-Tank 105572 | -5/Upper Caves | Entered Zhirov 105572 | -5/Zhirov | Discovered new exit (range 3) 105601 | -5/Zhirov | Met Zhirov 105629 | -5/Zhirov | Learned location of Quarantine (-3) 105629 | -5/Zhirov | Learned location of Command (-1) 105645 | -5/Zhirov | Zhirov requested help retrieving the SGEMP Prototype 105677 | -5/Zhirov | Found Alien Artifact 105677 | -5/Zhirov | Identified Integrated Reactor 105677 | -5/Zhirov | Installed Integrated Reactor, increased core energy generation (+10) 105824 | -5/Zhirov | Found Alien Artifact 105888 | -5/Zhirov | Entered Proximity Caves 105890 | -4/Proximity Caves | Attracted the attention of an 0b10 checkpoint 105891 | -4/Proximity Caves | Spotter reported a threat 106054 | -4/Proximity Caves | Build established: Tank 106205 | -4/Proximity Caves | Learned Research terminal intel 106458 | -4/Proximity Caves | Spotted B-86 Titan 107356 | -4/Proximity Caves | Discovered new exit (range 13) 107546 | -4/Proximity Caves | Build established: Mutant 108465 | -4/Proximity Caves | Entered Factory 108465 | -4/Factory | Evolved 2 slots: Utility x2 108466 | -4/Factory | Identified exit to Armory 108466 | -4/Factory | Identified exit to Upper Caves 108466 | -4/Factory | Identified exit to Research 108678 | -4/Factory | Discovered new exit (range 6) 108705 | -4/Factory | Entered Extension 109007 | -4/Extension | Rescued A7 109011 | -4/Extension | Attached CPS modules to A7 109172 | -4/Extension | Found Prototype Protection 109177 | -4/Extension | Scrapoid Pod released 04E05-D (x5) 109181 | -4/Extension | Identified Med. Regenerative Plating 109187 | -4/Extension | Extracted ID and sensor layout for unrecognized location from A7's data core 109403 | -4/Extension | Attached CPS modules to 04E02-D 109426 | -4/Extension | Build established: Scavenger-Tank 109734 | -4/Extension | Spotted B-86 Titan 109737 | -4/Extension | Allies destroyed B-86 Titan 109753 | -4/Extension | Spotted B-86 Titan 109757 | -4/Extension | Allies destroyed B-86 Titan 109779 | -4/Extension | Found Hvy. Reflective Plating 109972 | -4/Extension | Rescued a captive Derelict 110152 | -4/Extension | Rescued a captive Derelict 110164 | -4/Extension | Rescued a captive Derelict 110277 | -4/Extension | Rescued a captive Derelict 110277 | -4/Extension | Rescued a captive Derelict 110301 | -4/Extension | Rescued a captive Derelict 110302 | -4/Extension | Rescued a captive Derelict 110327 | -4/Extension | Discovered exit to Research (range 10) 110328 | -4/Extension | Discovered new exit (range 6) 110394 | -4/Extension | Entered Cetus 110394 | -4/Cetus | Accompanied by 21 allies 110404 | -4/Cetus | Spotted Cetus Guard 110404 | -4/Cetus | Spotted Cetus Guard 110411 | -4/Cetus | Spotted Cetus Guard 110412 | -4/Cetus | Destroyed Cetus Guard 110414 | -4/Cetus | Allies destroyed Cetus Guard 110414 | -4/Cetus | Spotted Cetus Guard 110420 | -4/Cetus | Allies destroyed Cetus Guard 110427 | -4/Cetus | Allies destroyed Cetus Guard 110457 | -4/Cetus | Lost 4 allies 110587 | -4/Cetus | Discovered new exit (range 15) 110719 | -4/Cetus | Spotted Cetus Guard 110719 | -4/Cetus | Spotted Cetus Guard 110721 | -4/Cetus | Spotted Cetus Guard 110723 | -4/Cetus | Destroyed Cetus Guard 110726 | -4/Cetus | Allies destroyed Cetus Guard 110729 | -4/Cetus | Allies destroyed Cetus Guard 110749 | -4/Cetus | Discovered exit to Research (range 15) 110755 | -4/Cetus | Met Revision 17 110766 | -4/Cetus | Botcube activated 110788 | -4/Cetus | Botcube completed mutation into treaded form, armed with 2 guns 110878 | -4/Cetus | Entered Archives 110878 | -4/Archives | Accompanied by 17 allies 110908 | -4/Archives | Found Scrap Suit 110928 | -4/Archives | Found Scrap Suit 110941 | -4/Archives | Lost 3 allies 110945 | -4/Archives | Discovered exit to Research (range 15) 110958 | -4/Archives | Discovered new exit (range 16) 110969 | -4/Archives | Discovered new exit (range 15) 111208 | -4/Archives | Build established: Scavenger-Scrapper 132551 | -4/Archives | Entered Hub_04(d) 132551 | -4/Hub_04(d) | Accompanied by 14 allies 132653 | -4/Hub_04(d) | Discovered exit to Research (range 11) 132737 | -4/Hub_04(d) | Spotted B-86 Titan 132811 | -4/Hub_04(d) | Lost 3 parts (1u2w) 132830 | -4/Hub_04(d) | Lost 5 allies 133129 | -4/Hub_04(d) | Network Hub disabled 133132 | -4/Hub_04(d) | Spotted Lightning 133132 | -4/Hub_04(d) | Spotted Lightning 133132 | -4/Hub_04(d) | Spotted Lightning 133137 | -4/Hub_04(d) | Attached CPS modules to Lightning 133144 | -4/Hub_04(d) | Destroyed Lightning 133157 | -4/Hub_04(d) | Allies destroyed Lightning 133162 | -4/Hub_04(d) | Found Prototype Energy Cannon 133164 | -4/Hub_04(d) | Found Prototype Device 133167 | -4/Hub_04(d) | Found Prototype Processor 133175 | -4/Hub_04(d) | Spotted Lightning 133178 | -4/Hub_04(d) | Lost 8 allies 133179 | -4/Hub_04(d) | Found Prototype Device 133180 | -4/Hub_04(d) | Spotted Lightning 133182 | -4/Hub_04(d) | Spotted Lightning 133185 | -4/Hub_04(d) | Network Hub disabled 133187 | -4/Hub_04(d) | Entered Research 133187 | -3/Research | Accompanied by 1 ally 133187 | -3/Research | Evolved 2 slots: Weapon x2 133188 | -3/Research | Loaded intel: 25 terminal locations 133188 | -3/Research | Attached CPS modules to Mutated Botcube 133191 | -3/Research | Identified Exp. Targeting Computer 133192 | -3/Research | Identified Exp. EM Shield 133194 | -3/Research | Identified Exp. Phase Shifter 133197 | -3/Research | Identified EMDS 133387 | -3/Research | Revision forces began assault on 0b10 133394 | -3/Research | Spotted B-86 Titan 133454 | -3/Research | Met up with Revision 17++ 133485 | -3/Research | Identified exit to Quarantine 133706 | -3/Research | Found Hellfire Missile Launcher 133741 | -3/Research | Repaired Exp. Weapon Shielding? 133887 | -3/Research | Research terminal network offline 133888 | -3/Research | Loaded intel: 5 recycling unit locations 133888 | -3/Research | Learned location of Protoforge (-3) 133912 | -3/Research | Fabricated Exp. Utility Shielding (x1) 133997 | -3/Research | Scrapoid reinforcements arrived 134002 | -3/Research | Attached CPS modules to 03R07-D 134260 | -3/Research | Scrapoid reinforcements arrived 134302 | -3/Research | Spotted Striker 134306 | -3/Research | Allies destroyed Striker 134309 | -3/Research | Found Scrap Suit 134315 | -3/Research | Spotted Executioner 134320 | -3/Research | Allies destroyed Executioner 134341 | -3/Research | Found Exp. Targeting Computer 134345 | -3/Research | Found Prototype Device 134346 | -3/Research | Identified Adv. Kinecellerator 134354 | -3/Research | Found Prototype Processor 134456 | -3/Research | Attached CPS modules to 03R14-D 134458 | -3/Research | Lost 3 allies 134458 | -3/Research | Attached CPS modules to 03R12-D 134533 | -3/Research | Spotted Striker 134537 | -3/Research | Allies destroyed Striker 134636 | -3/Research | Spotted Executioner 134642 | -3/Research | Identified Exp. Core Analyzer 134649 | -3/Research | Allies destroyed Executioner 134667 | -3/Research | Found Scrap Suit 134673 | -3/Research | Found Scrap Suit 134683 | -3/Research | Attached Gun Armor, gained temporary slots: Weapon x2 134685 | -3/Research | Lost 7 allies 134749 | -3/Research | Entered Quarantine 134847 | -3/Quarantine | Found Alien Artifact 134886 | -3/Quarantine | Cryocooling Duct disabled 134901 | -3/Quarantine | Ambient heat levels rising (+20) 134901 | -3/Quarantine | Non-combat units ordered to evacuate 134999 | -3/Quarantine | First assault squad dispatched 135405 | -3/Quarantine | Discovered new exit (range 3) 135417 | -3/Quarantine | Found Alien Energy Cannon 135511 | -3/Quarantine | Spotted Alpha 7 135518 | -3/Quarantine | Destroyed Alpha 7 135628 | -3/Quarantine | Spotted Fortress 135697 | -3/Quarantine | Discovered new exit (range 5) 135697 | -3/Quarantine | Discovered new exit (range 6) 135703 | -3/Quarantine | Entered Protoforge 135819 | -3/Protoforge | Spotted Hotshot 135821 | -3/Protoforge | Superfortress began startup sequence 136291 | -3/Protoforge | Identified Core Cannon 136332 | -3/Protoforge | Additional patrols dispatched to research labs 136345 | -3/Protoforge | Crushed by falling debris 136365 | -3/Protoforge | Crushed by falling debris 136367 | -3/Protoforge | Crushed by falling debris 136371 | -3/Protoforge | Crushed by falling debris 136372 | -3/Protoforge | System corruption reached 10% 136379 | -3/Protoforge | Identified Transdimensional Reconstructor 136385 | -3/Protoforge | Found Cep. Chromion Battery 136391 | -3/Protoforge | Found Cep. Chromion Battery 136393 | -3/Protoforge | Found Cep. Chromion Battery 136399 | -3/Protoforge | Found Prototype Device 136402 | -3/Protoforge | Lost 4 parts (1p3u) 136416 | -3/Protoforge | Spotted Decapitator 136417 | -3/Protoforge | Spotted Decapitator 136420 | -3/Protoforge | Destroyed Decapitator 136420 | -3/Protoforge | Destroyed Decapitator 136474 | -3/Protoforge | Spotted Hotshot 136474 | -3/Protoforge | Spotted Hotshot 136480 | -3/Protoforge | Destroyed Hotshot 136481 | -3/Protoforge | Destroyed Hotshot 136575 | -3/Protoforge | Spotted Decapitator 136703 | -3/Protoforge | First assault squad dispatched 136861 | -3/Protoforge | Spotted AP7-3 136861 | -3/Protoforge | Spotted AP7-3 136940 | -3/Protoforge | Core integrity fell below 50% 136946 | -3/Protoforge | System corruption reached 30% 136960 | -3/Protoforge | Core integrity fell below 20% 136971 | -3/Protoforge | Destroyed by AP7-3 with Concept XC Strikerail Last Messages --------------- 36944_ Ovr. Railgun destroyed. 36946_ Hellfire Missile intercepted. 36946_ Exp. Targeting Computer destroyed. 36948_ Hellfire Missile intercepted. 36949_ Penetrated by Slug. 36949_ Hellfire Missile Launcher destroyed. 36950_ Slammed into AP7-3. 36950_ Penetrated by Slug. 36953_ Slug penetrates Reinforced Barrier. 36953_ Imp. Transmission Jammer destroyed. 36954_ ALERT: Unidentified disturbance in Zone 6M, assault force dispatched. 36956_ Penetrated by Slug. 36956_ Slug penetrates Reinforced Barrier. 36957_ Penetrated by Slug. 36961_ IFF Parser destroyed. 36966_ System corrupted: Component data lost. 36966_ Penetrated by Slug. 36970_ Cep. Chromion Battery destroyed. 36972_ Penetrated by Slug. Map ----- +----------------------------------------------------+ | | | | | | | | | | | | | | | ?????????????????????????????????????????????????? | | ?????????????????????????????????????????????????? | | ?????????????????????????????????????????????????? | | ?????????????????????????????????????????????????? | | ?????????????????????????????????????????????????? | | ???????????????####?#######?####?????????????????? | | ???????????????#"""?#"""""#?"""#?????????????????? | | ???????????????#"!! " " " "!!!"#?????????????????? | | ???????????????#"! " " !!"#?????????????????? | | ???????????????#"!!! !!!"#?????????????????? | | ???????????????##"""" """"##?????????????????? | | ??????????###### ################### | | ???????? | | ??????? | | ???????? ^ | | ????????######## ################### | | ???????????????##"""" ! " "##?????????????????? | | ???????????????# !! =7! ! #?????????????????? | | ???????????????#"!!!" |p@!!!! #?????????????????? | | ???????????????#"!!!" |7" ! #?????????????????? | | ???????????????#"""?# =# " #?????????????????? | | ???????????????####?## #######?????????????????? | | ?????????????????????# #???????????????????????? | | ?????????????????????# #???????????????????????? | | ?????????????????????# #???????????????????????? | | ?????????????????????# #???????????????????????? | | ?????????????????????# #???????????????????????? | | ?????????????????????# #???????????????????????? | | ?????????????????????# #???????????????????????? | | ?????????????????????# ####################????? | | ?????????????????????# ^ =##???? | | ?????????????????????# = ^ ! *#???? | | ?????????????????????# ! = ! #???? | | ?????????????????????## ################ ##???? | | ??????????????????????####??????????????# =#????? | | ????????????????????????????????????????# #????? | | ????????????????????????????????????????# #????? | | ????????????????????????????????????????# #????? | | ????????????????????????????????????????# ###### | | ????????????????????????????????????????# | | ????????????????????????????????????????# | | ????????????????????????????????????????# ###### | | ????????????????????????????????????????# #????? | +----------------------------------------------------+ Best States ------------- Heat Dissipation 156 Coolant Potential 100 Energy Generation 43 Energy Capacity 1940 Matter Stores 300 Matter Capacity 550 Sight Range 23 Robot Scan Range 20 Terrain Scan Range 24 Terrain Scan Density 210 ECM Strength 2 Jamming Range 14 Cloak Strength 3 Power Amplification 40 Additional Mass Support 12 Base Temperature (-) 200 EM Shielding 4 Armor Coverage 950 Resistance: KI 30 Resistance: TH 30 Resistance: EM 75 Core Shielding 30 Propulsion Shielding 90 Utility Shielding 90 Weapon Shielding 90 Point Defense Rating 240 Weapon Cycling 20 Evasion (%) 55 Targeting Accuracy 20 Melee Accuracy 8 Launcher Accuracy 30 Target Analysis 8 Core Analysis 8 Recoil Reduction 6 Energy Filtering 50 Particle Charging 30 Kinecelleration 40 Salvage Targeting 5 Offensive Hacking 26 Defensive Hacking 20 Trap Extractor Capacity 6 Item Schematics ----------------- Assault Drone Bay | -5/Zhirov | Free Exp. Heat Sink | -5/Zhirov | Free Exp. Optical Array | -5/Zhirov | Free Imp. Arc Thrower | -5/Zhirov | Free Exp. Utility Shielding | -4/Extension | Hacked Adv. Hacking Suite | -4/Extension | Hacked Robot Schematics ------------------ None Fabricated ------------ Exp. Utility Shielding | x1 | -3/Research Repaired ---------- Exp. Weapon Shielding | 8% | -3/Research Studied --------- None Alien Tech Used ----------------- Integrated Reactor Core Cannon Achievements -------------- Like A Rock Challenges ------------ None Game ------ Seed GrenadeNeutronFocus Manual? 0 Play Time 06:35:33 Cumulative 850.8 hours Start 2026.08.06 @ 23:56:12 End 2026.08.07 @ 16:28:50 Sessions 21 Manual Loads 0 Difficulty Rogue Special Mode None Game No. 302 Rogue 298 Adventurer 4 Explorer 0 Win Type - Total 23 Types 9/3/7/0/0/0/2/2/0/0 Lore% 90 Gallery% 81 Achievement% 66 Wizard Run 0 Options --------- Layout 1 ASCII 0 Keyboard 0 Movement Arrows Keybinds 0 Fullscreen 1 Font 40/SmallcapsGlow Map View 50x40 Zoom Use 0% Tactical HUD 1 Map Filters NONE Filters NONE Steam 1 RUN: 72394049-f89e-4369-9110-ae38366ea54e